bitfinex/quotes_SOLUSD_20220311
["timestamp","ask_amount","ask_price","bid_price","bid_amount"]
[1647041815522,23.7076,81.139,81.091,50.20712853]
[1647041817131,129.46952299,81.14,81.091,50.20712853]
[1647041819835,129.46952299,81.14,81.071,22.6521]
[1647041821037,129.46952299,81.14,81.072,58.79089023]
[1647041822641,123.8,81.139,81.072,58.79089023]
[1647041822839,129.46952299,81.14,81.072,58.79089023]
[1647041824157,1.6601349,81.149,81.08,18.4958]
[1647041824359,1.6601349,81.165,81.081,123.8]
[1647041824565,23.7889,81.169,81.081,200.8002994]
[1647041824759,23.7889,81.169,81.082,20.06878698]
[1647041824958,23.7889,81.169,81.083,123.8]
[1647041825160,6.163,81.178,81.083,200.8002994]
[1647041825358,1.6601349,81.184,81.085,123.8]
[1647041825559,1.6601349,81.184,81.086,105.53378346]
[1647041825759,1.6601349,81.183,81.086,157.28808264]
[1647041825967,1.6601349,81.183,81.1,18.4853]
[1647041826159,1.6601349,81.183,81.102,58.37302834]
[1647041826361,123.8,81.181,81.102,58.37302834]
[1647041826760,123.8,81.179,81.102,58.37302834]
[1647041827163,151.4416847,81.179,81.102,58.37302834]
[1647041827662,6.162,81.178,81.102,58.37302834]
[1647041828062,123.8,81.176,81.102,58.37302834]
[1647041828862,123.8,81.176,81.11,18.4898]
[1647041829263,123.8,81.176,81.111,24.9511]
[1647041831368,1.6601349,81.174,81.111,24.9511]
[1647041833273,1.6601349,81.173,81.111,24.9511]
[1647041833473,1.6601349,81.171,81.111,24.9511]
[1647041833673,1.6601349,81.169,81.111,24.9511]
[1647041833874,1.6601349,81.167,81.111,24.9511]
[1647041834176,1.6601349,81.167,81.112,6.162]
[1647041834878,1.6601349,81.166,81.112,6.162]
[1647041835077,123.8,81.165,81.111,24.9511]
[1647041835276,1.6601349,81.163,81.101,24.1175]
[1647041835473,1.6601349,81.16,81.101,24.1175]
[1647041835875,1.6601349,81.157,81.101,24.1175]
[1647041836074,1.6601349,81.157,81.09,22.5646]
[1647041836476,1.6601349,81.156,81.09,22.5646]
[1647041837076,1.6601349,81.155,81.09,22.5646]
[1647041837578,1.6601349,81.153,81.09,22.5646]
[1647041837976,1.6601349,81.151,81.09,22.5646]
[1647041838578,1.6601349,81.15,81.09,22.5646]
[1647041839376,1.6601349,81.149,81.091,6.163]
[1647041839578,1.6601349,81.148,81.091,6.163]
[1647041839977,1.6601349,81.144,81.091,6.163]
[1647041840578,1.6601349,81.143,81.091,6.163]
[1647041840778,1.6601349,81.141,81.091,6.163]
[1647041841684,1.6601349,81.144,81.091,6.163]
[1647041842184,1.6601349,81.143,81.091,6.163]
[1647041842582,1.6601349,81.14,81.091,6.163]
[1647041842817,1.6601349,81.137,81.091,6.163]
[1647041842987,1.6601349,81.136,81.091,6.163]
[1647041843390,1.6601349,81.14,81.091,6.163]
[1647041843792,1.6601349,81.14,81.09,22.5646]
[1647041844591,1.6601349,81.139,81.09,22.5646]
[1647041845395,1.6601349,81.136,81.09,22.5646]
[1647041845594,1.6601349,81.134,81.09,22.5646]
[1647041848297,1.6601349,81.134,81.09,28.7286]
[1647041848699,1.6601349,81.136,81.09,28.7286]
[1647041849298,1.6601349,81.137,81.09,28.7286]
[1647041849998,1.6601349,81.134,81.09,28.7286]
[1647041850199,1.6601349,81.133,81.09,28.7286]
[1647041850417,1.6601349,81.134,81.09,28.7286]
[1647041852117,1.6601349,81.132,81.09,22.5646]
[1647041852818,1.6601349,81.131,81.09,22.5646]
[1647041853021,1.6601349,81.132,81.081,23.8305]
[1647041853220,1.6601349,81.132,81.07,2.7571087]
[1647041853221,1.6601349,81.125,81.063,6.164]
[1647041853420,1.6601349,81.125,81.061,22.5862]
[1647041853619,1.6601349,81.117,81.061,22.5862]
[1647041853820,1.6601349,81.116,81.061,22.5862]
[1647041854422,1.6601349,81.119,81.061,22.5862]
[1647041854822,1.6601349,81.118,81.061,22.5862]
[1647041855020,1.6601349,81.119,81.061,22.5862]
[1647041855222,1.6601349,81.118,81.061,22.5862]
[1647041857327,125.4601349,81.119,81.061,22.5862]
[1647041857927,1.6601349,81.118,81.061,22.5862]
[1647041858430,125.4601349,81.119,81.061,22.5862]
[1647041859529,1.6601349,81.118,81.061,22.5862]
[1647041860329,1.6601349,81.117,81.061,22.5862]
[1647041861637,1.6601349,81.117,81.061,22.0862]
[1647041863435,1.6601349,81.116,81.061,22.0862]
[1647041864143,1.6601349,81.117,81.061,22.0862]
[1647041864535,1.6601349,81.116,81.061,22.0862]
[1647041866437,1.6601349,81.115,81.061,22.0862]
[1647041866738,1.6601349,81.122,81.061,22.0862]
[1647041866936,1.6601349,81.122,81.062,6.165]
[1647041867936,1.6601349,81.121,81.062,6.165]
[1647041868341,1.6601349,81.119,81.062,6.165]
[1647041868536,1.6601349,81.12,81.062,6.165]
[1647041868737,1.6601349,81.121,81.062,6.165]
[1647041869238,1.6601349,81.119,81.062,6.165]
[1647041870238,1.6601349,81.117,81.062,6.165]
[1647041870642,1.6601349,81.115,81.062,6.165]
[1647041871041,1.6601349,81.114,81.062,6.165]
[1647041871342,1.6601349,81.113,81.062,6.165]
[1647041871739,1.6601349,81.115,81.062,6.165]
[1647041872341,1.6601349,81.114,81.062,6.165]
[1647041874339,1.6601349,81.113,81.062,6.165]
[1647041876441,1.6601349,81.112,81.062,6.165]
[1647041877344,1.6601349,81.111,81.062,6.165]
[1647041879447,1.6601349,81.11,81.062,6.165]
[1647041880350,1.6601349,81.109,81.062,6.165]
[1647041881151,1.6601349,81.108,81.062,6.165]
[1647041881350,1.6601349,81.107,81.062,6.165]
[1647041882452,1.6601349,81.106,81.062,6.165]
[1647041882651,1.6601349,81.105,81.062,6.165]
[1647041883056,1.6601349,81.111,81.062,6.165]
[1647041883252,1.6601349,81.12,81.062,6.165]
[1647041883452,1.6601349,81.12,81.062,29.78028645]
[1647041883653,1.6601349,81.121,81.062,29.78028645]
[1647041883853,1.6601349,81.12,81.062,29.78028645]
[1647041884074,1.6601349,81.121,81.07,18.4987]
[1647041884278,1.6601349,81.122,81.072,50.53417068]
[1647041885574,1.6601349,81.121,81.071,24.61]
[1647041885778,1.6601349,81.122,81.071,24.61]
[1647041886376,1.6601349,81.123,81.071,24.61]
[1647041886579,1.6601349,81.123,81.072,53.23624739]
[1647041886777,1.6601349,81.122,81.072,53.23624739]
[1647041886976,1.6601349,81.123,81.072,53.23624739]
[1647041888080,1.6601349,81.122,81.072,53.23624739]
[1647041888279,1.6601349,81.124,81.072,53.23624739]
[1647041888677,1.6601349,81.124,81.071,24.61]
[1647041888881,123.8,81.123,81.071,24.61]
[1647041889078,1.6601349,81.107,81.071,24.61]
[1647041889278,1.6601349,81.105,81.071,24.61]
[1647041890081,1.6601349,81.098,81.071,24.61]
[1647041890282,1.6601349,81.094,81.071,24.61]
[1647041890480,1.6601349,81.093,81.071,24.61]
[1647041890680,1.6601349,81.092,81.071,24.61]
[1647041891083,1.6601349,81.089,81.071,24.61]
[1647041891283,123.8,81.087,81.071,24.61]
[1647041891480,6.166,81.086,81.011,23.0998]
[1647041891680,123.8,81.084,81.011,23.0998]
[1647041892081,123.8,81.084,81.012,56.37363157]
[1647041896586,123.8,81.084,81.013,25.6887907]
[1647041898388,123.8,81.084,81.012,56.37363157]
[1647041898988,6.168,81.083,81.012,56.37363157]
[1647041900492,123.8,81.079,81.012,56.37363157]
[1647041900691,6.168,81.078,81.012,56.37363157]
[1647041901690,6.168,81.078,81.013,24.6194]
[1647041902399,6.168,81.083,81.013,24.6194]
[1647041908600,123.8,81.084,81.013,73.92347715]
[1647041909397,123.8,81.084,81.02,18.5099]
[1647041911900,123.8,81.084,81.013,50.3081907]
[1647041912101,6.168,81.083,81.013,24.6194]
[1647041913207,123.8,81.082,81.013,24.6194]
[1647041913403,6.168,81.081,81.013,24.6194]
[1647041914210,131.6281349,81.081,81.013,24.6194]
[1647041914409,6.168,81.081,81.013,24.6194]
[1647041914612,1.6601349,81.082,81.014,28.46163959]
[1647041914909,24.9646,81.085,81.014,35.89163959]
[1647041915114,24.9646,81.085,81.015,2.77284889]
[1647041916210,24.9646,81.085,81.02,18.5103]
[1647041919427,123.8,81.084,81.02,18.5103]
[1647041919828,24.9646,81.085,81.02,18.5103]
[1647041920029,24.9646,81.085,81.021,6.168]
[1647041920428,1.6601349,81.087,81.021,6.168]
[1647041920832,1.6601349,81.086,81.021,6.168]
[1647041921334,1.6601349,81.087,81.021,6.168]
[1647041921533,1.6601349,81.086,81.021,6.168]
[1647041922332,1.6601349,81.087,81.021,6.168]
[1647041922732,1.6601349,81.086,81.021,6.168]
[1647041922932,1.6601349,81.085,81.021,6.168]
[1647041923333,1.6601349,81.084,81.021,6.168]
[1647041923533,157.30279803,81.099,81.021,6.168]
[1647041923534,1.6601349,81.085,81.021,6.168]
[1647041926348,1.6601349,81.085,81.031,49.38408291]
[1647041926553,1.6601349,81.089,81.032,30.0199]
[1647041926754,1.6601349,81.091,81.032,30.0199]
[1647041927353,24.0678,81.102,81.032,30.0199]
[1647041927354,1.6601349,81.092,81.032,30.0199]
[1647041927555,1.6601349,81.093,81.032,30.0199]
[1647041927956,1.6601349,81.092,81.032,30.0199]
[1647041928157,1.6601349,81.093,81.04,18.5049]
[1647041928756,1.6601349,81.092,81.04,18.5049]
[1647041929162,1.6601349,81.093,81.04,18.5049]
[1647041929960,1.6601349,81.093,81.032,30.0199]
[1647041930665,1.6601349,81.094,81.032,30.0199]
[1647041931459,1.6601349,81.095,81.032,30.0199]
[1647041931660,1.6601349,81.098,81.032,30.0199]
[1647041932261,1.6601349,81.098,81.04,18.5058]
[1647041932462,1.6601349,81.1,81.041,6.167]
[1647041932662,1.6601349,81.1,81.042,24.6735]
[1647041932864,1.6601349,81.1,81.043,6.167]
[1647041933062,1.6601349,81.1,81.043,132.73710446]
[1647041933262,27.33479803,81.125,81.043,132.73710446]
[1647041933263,1.6601349,81.112,81.044,149.4887907]
[1647041933463,1.6601349,81.112,81.045,6.166]
[1647041933760,1.6601349,81.113,81.045,58.24018161]
[1647041933963,1.6601349,81.113,81.046,51.05740446]
[1647041934162,1.6601349,81.115,81.05,18.5035]
[1647041934363,1.6601349,81.115,81.051,6.166]
[1647041934765,1.6601349,81.115,81.047,2.77010446]
[1647041934766,1.6601349,81.115,81.048,6.166]
[1647041935166,1.6601349,81.117,81.048,8.93610446]
[1647041935365,1.6601349,81.117,81.06,18.501]
[1647041935568,1.6601349,81.123,81.062,56.70275232]
[1647041935767,1.6601349,81.125,81.064,123.8]
[1647041935969,1.6601349,81.13,81.065,6.165]
[1647041936168,1.6601349,81.135,81.065,6.165]
[1647041936366,25.2392349,81.136,81.07,18.4977]
[1647041936584,25.2392349,81.136,81.071,6.165]
[1647041936991,25.2392349,81.136,81.067,6.164]
[1647041937283,23.5791,81.136,81.067,6.164]
[1647041937483,23.5791,81.136,81.068,2.77010446]
[1647041937784,23.5791,81.136,81.069,6.165]
[1647041938185,23.5791,81.136,81.08,18.4956]
[1647041938385,23.5791,81.136,81.081,29.4553]
[1647041940087,23.5791,81.136,81.081,23.2913]
[1647041940696,123.8,81.135,81.081,23.2913]
[1647041941093,129.964,81.135,81.081,23.2913]
[1647041941290,3.04447957,81.134,81.046,6.164]
[1647041941489,3.04447957,81.134,81.007,12.87736866]
[1647041941490,1.6601349,81.124,81.047,23.4242]
[1647041941792,1.6601349,81.116,81.047,23.4242]
[1647041941989,1.6601349,81.118,81.047,23.4242]
[1647041942191,1.6601349,81.117,81.048,48.52101868]
[1647041942791,123.8,81.109,81.048,48.52101868]
[1647041943893,1.6601349,81.114,81.047,23.4242]
[1647041944498,1.6601349,81.113,81.047,23.4242]
[1647041944899,123.8,81.119,81.047,23.4242]
[1647041944900,1.6601349,81.112,81.048,6.166]
[1647041945106,123.8,81.099,81.048,6.166]
[1647041950816,123.8,81.099,81.047,23.4242]
[1647041952519,123.8,81.089,81.018,25.98327978]
[1647041952717,123.8,81.087,81.019,24.989]
[1647041952921,129.968,81.087,81.019,24.989]
[1647041953519,129.968,81.087,81.02,52.05376962]
[1647041954119,123.8,81.079,81.02,52.05376962]
[1647041954620,123.8,81.079,81.019,24.989]
[1647041955220,129.968,81.087,81.019,24.989]
[1647041955643,129.968,81.087,81.001,24.0732]
[1647041955644,123.8,81.069,81.001,24.0732]
[1647041955839,6.17,81.068,81.001,24.0732]
[1647041956239,1.6601349,81.065,81.001,24.0732]
[1647041956442,6.17,81.068,80.987,22.9662]
[1647041956443,6.17,81.064,80.987,22.9662]
[1647041956640,123.8,81.063,80.987,22.9662]
[1647041956841,123.8,81.049,80.987,22.9662]
[1647041957039,129.94,81.049,80.987,22.9662]
[1647041957441,6.171,81.048,80.987,22.9662]
[1647041957841,123.8,81.039,80.987,22.9662]
[1647041959743,123.8,81.039,80.963,23.6574]
[1647041959948,123.8,81.029,80.964,23.9256]
[1647041960746,123.8,81.029,80.965,51.22479156]
[1647041961144,18.5234,81.03,80.965,51.22479156]
[1647041961344,123.8,81.029,80.965,51.22479156]
[1647041962044,24.6178,81.028,80.965,51.22479156]
[1647041963257,24.6178,81.028,80.966,2.77010446]
[1647041963862,24.6178,81.028,80.965,51.22479156]
[1647041964159,24.6178,81.028,80.965,53.99489602]
[1647041964559,24.6178,81.028,80.965,51.22479156]
[1647041964761,24.6178,81.028,80.965,53.99489602]
[1647041966662,24.6178,81.028,80.965,51.22479156]
[1647041969473,24.1183,81.048,80.965,51.22479156]
[1647041969474,6.173,81.046,80.966,123.8]
[1647041969667,24.2789,81.047,80.967,47.218]
[1647041969867,24.2789,81.047,80.967,49.98810446]
[1647041970070,24.2789,81.047,80.968,42.66454013]
[1647041970468,24.2789,81.047,80.97,18.5192]
[1647041970867,24.2789,81.047,80.971,2.77010446]
[1647041971470,24.2789,81.047,80.971,28.45889516]
[1647041971870,24.2789,81.047,80.972,2.77010446]
[1647041972072,24.2789,81.047,80.98,18.5162]
[1647041972273,24.2789,81.047,80.981,24.9004]
[1647041972474,28.43347136,81.075,80.982,168.109493]
[1647041972674,123.8,81.073,80.984,123.8]
[1647041972874,6.17,81.072,80.984,123.8]
[1647041973175,6.17,81.072,80.986,123.8]
[1647041973374,6.17,81.084,81.001,123.8]
[1647041973574,23.9915,81.085,81.003,123.8]
[1647041973774,23.9915,81.085,81.003,129.63]
[1647041974092,23.9915,81.085,81.005,123.8]
[1647041974294,6.168,81.106,81.005,123.8]
[1647041974495,6.168,81.106,81.007,123.8]
[1647041974800,35.56787136,81.105,81.02,18.5034]
[1647041974998,1.6601349,81.103,81.021,23.8237]
[1647041975199,1.6601349,81.093,81.021,23.8237]
[1647041975397,6.168,81.092,81.021,23.8237]
[1647041975602,123.8,81.091,81.021,23.8237]
[1647041975801,6.168,81.09,81.021,23.8237]
[1647041976197,123.8,81.088,81.021,23.8237]
[1647041976398,6.168,81.087,81.021,23.8237]
[1647041976596,123.8,81.086,81.021,23.8237]
[1647041976799,142.3147,81.08,81.021,23.8237]
[1647041976998,6.168,81.079,81.021,23.8237]
[1647041977401,65.29697136,81.079,81.021,23.8237]
[1647041977599,35.56787136,81.078,81.021,23.8237]
[1647041977798,123.8,81.077,81.021,23.8237]
[1647041978200,123.8,81.075,81.021,23.8237]
[1647041978602,123.8,81.073,81.021,23.8237]
[1647041979000,123.8,81.071,81.021,23.8237]
[1647041979200,142.3142,81.07,81.021,23.8237]
[1647041979401,177.88207136,81.07,81.021,23.8237]
[1647041979600,35.56787136,81.069,81.021,23.8237]
[1647041984309,6.168,81.078,81.021,23.8237]
[1647041984909,23.5611,81.079,81.021,23.8237]
[1647041986215,55.83563803,81.079,81.021,23.8237]
[1647041986416,6.168,81.078,81.021,23.8237]
[1647041986815,32.27453803,81.077,81.021,23.8237]
[1647041987016,6.168,81.076,81.021,23.8237]
[1647041987220,18.5139,81.07,81.021,23.8237]
[1647041987415,142.3139,81.07,81.021,23.8237]
[1647041988016,18.5139,81.07,81.021,23.8237]
[1647041988218,6.168,81.076,81.021,23.8237]
[1647041989926,18.5142,81.07,81.021,23.8237]
[1647041990729,142.3142,81.07,81.021,23.8237]
[1647041991825,18.5142,81.07,81.021,23.8237]
[1647041994848,142.3142,81.07,81.021,23.8237]
[1647041995653,18.5142,81.07,81.021,23.8237]
[1647041995850,142.3142,81.07,81.021,23.8237]
[1647041997452,18.5142,81.07,81.021,23.8237]
[1647041999458,142.3142,81.07,81.021,23.8237]
[1647042000865,32.27237406,81.069,81.021,23.8237]
[1647042001263,123.8,81.068,81.021,23.8237]
[1647042004663,156.07237406,81.068,81.021,23.8237]
[1647042009468,123.8,81.068,81.021,23.8237]
[1647042012774,123.8,81.066,81.021,23.8237]
[1647042015578,123.8,81.066,81.007,6.168]
[1647042015780,123.8,81.066,81.008,22.7973]
[1647042016581,123.8,81.065,81.008,22.7973]
[1647042017582,123.8,81.068,81.008,22.7973]
[1647042019885,156.07237406,81.068,81.008,22.7973]
[1647042024393,162.24037406,81.068,81.008,22.7973]
[1647042025194,156.07237406,81.068,81.008,22.7973]
[1647042025393,142.3163,81.06,81.008,22.7973]
[1647042025893,123.8,81.058,81.008,22.7973]
[1647042026193,6.17,81.057,81.008,22.7973]
[1647042026391,123.8,81.056,81.008,22.7973]
[1647042026617,156.07237406,81.056,81.008,22.7973]
[1647042026914,123.8,81.054,81.008,22.7973]
[1647042027114,142.3199,81.05,81.008,22.7973]
[1647042029916,142.3199,81.05,81.007,6.168]
[1647042037228,74.26,81.049,81.007,6.168]
[1647042037428,123.8,81.029,80.979,129.65]
[1647042037631,198.06,81.027,80.979,129.65]
[1647042037828,123.8,81.025,80.979,129.65]
[1647042038029,31.0581,81.026,80.979,129.65]
[1647042038030,74.26,81.022,80.979,129.65]
[1647042038230,198.06,81.017,80.979,129.65]
[1647042038430,6.172,81.016,80.979,129.65]
[1647042038634,198.06,81.015,80.979,129.65]
[1647042038831,198.06,81.009,80.979,129.65]
[1647042039031,6.173,81.008,80.979,129.65]
[1647042039230,123.8,81.001,80.979,129.65]
[1647042039433,198.06,80.997,80.979,129.65]
[1647042039631,6.173,80.996,80.979,129.65]
[1647042039829,123.8,80.995,80.979,129.65]
[1647042040030,6.173,80.994,80.979,129.65]
[1647042040231,123.8,80.989,80.979,129.65]
[1647042040438,123.8,80.987,80.979,129.65]
[1647042040932,126.84447957,80.987,80.979,129.65]
[1647042041330,172.01684225,80.987,80.979,129.65]
[1647042042631,6.174,80.986,80.979,129.65]
[1647042043031,6.174,80.986,80.908,24.9794]
[1647042043032,32.27237406,80.985,80.908,24.9794]
[1647042043232,18.5393,80.97,80.909,51.35396561]
[1647042044235,123.8,80.983,80.909,51.35396561]
[1647042046137,123.8,80.983,80.91,18.534]
[1647042046837,123.8,80.983,80.911,6.176]
[1647042047949,162.24837406,80.983,80.911,6.176]
[1647042048837,156.07237406,80.983,80.911,6.176]
[1647042050042,18.5349,80.98,80.911,6.176]
[1647042050439,32.27237406,80.979,80.911,6.176]
[1647042051241,129.976,80.978,80.908,24.9794]
[1647042051442,123.8,80.969,80.908,24.9794]
[1647042051941,123.8,80.967,80.908,24.9794]
[1647042053165,6.176,80.977,80.908,24.9794]
[1647042053365,24.0033,80.978,80.909,6.176]
[1647042054167,32.27237406,80.977,80.909,6.176]
[1647042054768,6.176,80.976,80.908,24.9794]
[1647042055172,18.537,80.97,80.908,24.9794]
[1647042055672,32.27237406,80.969,80.908,24.9794]
[1647042058273,6.176,80.968,80.908,24.9794]
[1647042058772,38.44837406,80.968,80.908,24.9794]
[1647042058970,32.27237406,80.968,80.908,24.9794]
[1647042061174,6.176,80.967,80.908,24.9794]
[1647042061673,32.27237406,80.968,80.908,24.9794]
[1647042063176,32.27237406,80.981,80.91,18.5343]
[1647042063578,6.176,80.998,80.91,18.5343]
[1647042063776,6.176,80.998,80.911,23.0863]
[1647042063975,37.34025406,80.998,80.911,23.0863]
[1647042064179,31.16425406,80.997,80.911,23.0863]
[1647042064377,18.5324,80.99,80.911,23.0863]
[1647042064877,31.16425406,80.989,80.911,23.0863]
[1647042065479,18.5346,80.98,80.911,23.0863]
[1647042065679,18.5346,80.98,80.912,123.8]
[1647042065978,31.16425406,80.989,80.912,126.57010446]
[1647042066179,31.16425406,80.989,80.913,2.77010446]
[1647042066478,31.16425406,80.987,80.913,2.77010446]
[1647042068188,31.16425406,80.987,80.92,18.5318]
[1647042068688,31.16425406,80.987,80.921,23.1494]
[1647042070691,31.16425406,80.987,80.922,65.78143506]
[1647042073592,31.16425406,80.987,80.921,23.1494]
[1647042074491,31.16425406,80.987,80.922,48.65343397]
[1647042077793,37.34025406,80.987,80.922,48.65343397]
[1647042078296,31.16425406,80.986,80.922,48.65343397]
[1647042079898,18.5347,80.98,80.922,48.65343397]
[1647042080300,49.69895406,80.98,80.922,48.65343397]
[1647042085607,49.69895406,80.98,80.921,23.1494]
[1647042086732,49.69895406,80.98,80.922,55.87460877]
[1647042088737,31.16425406,80.98,80.922,55.87460877]
[1647042089137,24.5308,80.988,80.922,55.87460877]
[1647042089337,23.5308,80.988,80.922,55.87460877]
[1647042089639,31.16425406,80.987,80.922,55.87460877]
[1647042095446,1.66732419,80.985,80.922,55.87460877]
[1647042095845,31.16425406,80.984,80.922,55.87460877]
[1647042100951,1.66732419,80.986,80.922,55.87460877]
[1647042101150,1.66732419,80.985,80.922,55.87460877]
[1647042101352,32.83157825,80.985,80.922,55.87460877]
[1647042101854,31.16425406,80.984,80.922,55.87460877]
[1647042102854,1.66732419,80.985,80.931,123.8]
[1647042103051,32.83157825,80.998,80.933,123.8]
[1647042103252,23.2494,81.007,80.933,123.8]
[1647042103454,1.66732419,81.011,80.933,123.8]
[1647042103652,1.66732419,81.012,80.935,123.8]
[1647042103852,1.66732419,81.013,80.937,123.8]
[1647042104051,1.66732419,81.013,80.936,47.4724]
[1647042104052,1.66732419,81.013,80.951,123.8]
[1647042104254,1.66732419,81.013,80.955,123.8]
[1647042104454,1.66732419,81.016,80.955,123.8]
[1647042104654,1.66732419,81.017,80.957,123.8]
[1647042104953,1.66732419,81.021,80.957,123.8]
[1647042105157,1.66732419,81.021,80.97,18.5194]
[1647042105353,1.66732419,81.021,80.971,24.7826]
[1647042105553,1.66732419,81.024,80.971,24.7826]
[1647042105754,28.25572073,81.022,80.971,24.7826]
[1647042106554,1.66732419,81.026,80.971,24.7826]
[1647042106754,1.66732419,81.027,80.971,24.7826]
[1647042106956,23.2494,81.028,80.971,24.7826]
[1647042107153,24.91672419,81.028,80.971,24.7826]
[1647042107554,23.2494,81.028,80.971,24.7826]
[1647042115894,28.25572073,81.027,80.971,24.7826]
[1647042117295,23.2494,81.028,80.971,24.7826]
[1647042118497,23.2494,81.028,80.972,6.172]
[1647042121501,1.66732419,81.037,80.972,6.172]
[1647042121699,25.35082419,81.038,80.973,153.18052082]
[1647042121901,1.66732419,81.05,80.974,6.172]
[1647042122199,1.66732419,81.051,80.975,123.8]
[1647042122405,1.66732419,81.057,80.977,123.8]
[1647042122601,1.66732419,81.07,80.981,123.8]
[1647042122800,1.66732419,81.072,80.983,123.8]
[1647042123000,23.6835,81.079,80.984,6.17]
[1647042123001,1.66732419,81.075,80.984,6.17]
[1647042123200,1.66732419,81.075,80.985,123.8]
[1647042123401,1.66732419,81.075,80.987,123.8]
[1647042123604,1.66732419,81.076,80.988,6.17]
[1647042123801,1.66732419,81.075,80.989,123.8]
[1647042124003,1.66732419,81.076,81.001,123.8]
[1647042124203,23.6835,81.079,81.003,123.8]
[1647042124402,23.6835,81.079,81.004,6.168]
[1647042124802,23.6835,81.079,81.005,123.8]
[1647042125005,23.6835,81.079,81.006,6.168]
[1647042125203,23.6835,81.079,81.02,18.5059]
[1647042125404,23.6835,81.079,81.021,29.7211]
[1647042130209,1.66732419,81.089,81.021,29.7211]
[1647042130421,1.66732419,81.09,81.021,29.7211]
[1647042130612,1.66732419,81.092,81.021,29.7211]
[1647042130911,1.66732419,81.09,81.022,123.8]
[1647042131116,1.66732419,81.089,81.033,123.8]
[1647042131315,23.9117,81.1,81.035,123.8]
[1647042131316,1.66732419,81.097,81.035,123.8]
[1647042131511,1.66732419,81.098,81.035,123.8]
[1647042131737,23.9117,81.1,81.035,123.8]
[1647042131937,1.66732419,81.099,81.034,23.6715]
[1647042132336,23.9786,81.108,81.035,123.8]
[1647042132337,1.66732419,81.1,81.035,123.8]
[1647042132536,1.66732419,81.102,81.035,123.8]
[1647042132736,1.66732419,81.104,81.035,123.8]
[1647042133137,23.9786,81.108,81.035,123.8]
[1647042133138,1.66732419,81.102,81.035,123.8]
[1647042133338,1.66732419,81.103,81.035,123.8]
[1647042133538,1.66732419,81.104,81.035,123.8]
[1647042133943,1.66732419,81.105,81.035,123.8]
[1647042134737,1.66732419,81.106,81.035,123.8]
[1647042134938,23.9786,81.108,81.035,123.8]
[1647042135151,1.66732419,81.107,81.035,123.8]
[1647042135540,23.9786,81.108,81.034,23.6715]
[1647042136040,26.00238739,81.107,81.034,23.6715]
[1647042145859,27.66971158,81.107,81.034,23.6715]
[1647042146562,1.66732419,81.106,81.034,23.6715]
[1647042146959,26.00238739,81.107,81.034,23.6715]
[1647042146960,1.66732419,81.104,81.034,23.6715]
[1647042147963,18.5074,81.1,81.034,23.6715]
[1647042148164,1.66732419,81.097,81.034,23.6715]
[1647042148566,1.66732419,81.096,81.034,23.6715]
[1647042149068,1.66732419,81.096,81.025,6.167]
[1647042149069,1.66732419,81.085,81.025,6.167]
[1647042149266,1.66732419,81.085,81.011,6.168]
[1647042149468,1.66732419,81.081,81.011,6.168]
[1647042149767,1.66732419,81.08,81.012,63.19283289]
[1647042150065,1.66732419,81.08,81.006,23.7007]
[1647042150066,1.66732419,81.069,81.013,6.168]
[1647042150268,6.168,81.079,81.003,6.168]
[1647042150269,1.66732419,81.058,81.003,6.168]
[1647042150494,1.66732419,81.054,80.966,24.94769709]
[1647042150696,1.66732419,81.054,80.967,6.172]
[1647042150895,1.66732419,81.054,80.968,49.07434706]
[1647042151095,1.66732419,81.052,80.969,6.172]
[1647042151295,18.5201,81.05,80.97,23.1517]